bitfinex-derivatives/quotes_BTCF0:USTF0_20250209
["timestamp","ask_amount","ask_price","bid_price","bid_amount"]
[1739133199756,0.80189011,96501.0,96496.0,0.00155434]
[1739133200053,0.80189011,96501.0,96462.0,0.051826]
[1739133200054,0.2072627,96482.0,96481.0,0.24619895]
[1739133204357,0.2072701,96478.0,96477.0,0.2072719]
[1739133205247,0.3608,96484.0,96473.0,0.24619895]
[1739133205448,0.207278,96475.0,96473.0,0.24619895]
[1739133206655,0.207278,96475.0,96473.0,0.45647965]
[1739133207651,0.2072787,96474.0,96473.0,0.45647965]
[1739133208457,0.2072787,96474.0,96473.0,0.2102807]
[1739133208650,0.2072787,96474.0,96473.0,0.2072807]
[1739133208851,0.2072787,96474.0,96473.0,0.2102807]
[1739133216556,0.05173342,96474.0,96473.0,0.003]
[1739133216761,0.2072787,96474.0,96473.0,0.003]
[1739133219169,0.2072787,96474.0,96473.0,0.74614221]
[1739133220259,0.20723491,96474.0,96473.0,0.74614221]
[1739133221164,0.27747491,96474.0,96473.0,0.74614221]
[1739133223569,0.28821666,96474.0,96473.0,0.003]
[1739133226871,0.08098175,96474.0,96461.0,0.01061677]
[1739133227068,0.3608,96462.0,96459.0,0.24639353]
[1739133227274,0.2073088,96460.0,96459.0,0.24639353]
[1739133227491,0.3608,96462.0,96453.0,0.0015549]
[1739133227694,0.2073165,96457.0,96453.0,0.0015549]
[1739133227993,0.2073195,96455.0,96454.0,0.20732]
[1739133228391,0.2073217,96454.0,96453.0,0.01237339]
[1739133229485,0.2073217,96454.0,96453.0,0.02137339]
[1739133230082,0.2083217,96454.0,96453.0,0.01737339]
[1739133234292,0.00052001,96462.0,96461.0,0.2073066]
[1739133234499,0.1854663,96479.0,96461.0,0.2073066]
[1739133234500,0.2073002,96466.0,96465.0,0.2072962]
[1739133235688,0.2073002,96466.0,96465.0,0.2092962]
[1739133236094,0.2073002,96466.0,96465.0,0.002]
[1739133236297,0.5681002,96466.0,96465.0,0.002]
[1739133237496,0.5681002,96466.0,96465.0,0.209298]
[1739133239403,0.3608,96466.0,96465.0,0.209298]
[1739133239698,0.5680959,96466.0,96465.0,0.209298]
[1739133240298,0.2072959,96466.0,96465.0,0.209298]
[1739133242511,0.3608,96475.0,96469.0,0.2072894]
[1739133242709,0.3608,96485.0,96469.0,0.2072894]
[1739133244512,0.3608,96485.0,96469.0,0.2082894]
[1739133244811,0.09028356,96490.0,96469.0,0.2082894]
[1739133245004,0.3608,96487.0,96469.0,0.2082894]
[1739133245408,0.3608,96487.0,96469.0,0.2072894]
[1739133245611,0.3608,96487.0,96469.0,0.2092894]
[1739133246198,0.2072603,96483.0,96469.0,0.2092894]
[1739133246598,0.3608,96487.0,96469.0,0.2092894]
[1739133247008,0.568051,96487.0,96469.0,0.2092894]
[1739133247405,0.207251,96487.0,96469.0,0.2092894]
[1739133249307,0.2072549,96486.0,96469.0,0.2092894]
[1739133249707,0.2072549,96486.0,96485.0,0.2072551]
[1739133251210,0.2112549,96486.0,96485.0,0.2072551]
[1739133255815,0.004,96486.0,96485.0,0.2072551]
[1739133256216,0.00015548,96495.0,96494.0,0.2072357]
[1739133258024,0.00515548,96495.0,96494.0,0.2072357]
[1739133262124,0.00515548,96495.0,96494.0,0.21821931]
[1739133268231,0.21238908,96495.0,96494.0,0.2072357]
[1739133270626,0.00515548,96495.0,96494.0,0.2072357]
[1739133279239,0.87372,96512.0,96511.0,0.2071992]
[1739133280441,0.88272,96512.0,96511.0,0.2081992]
[1739133281743,1.12792001,96532.0,96511.0,0.2081992]
[1739133281744,1e-08,96561.0,96553.0,0.2071091]
[1739133281937,0.01083975,96568.0,96567.0,0.2070791]
[1739133282132,0.01083975,96568.0,96567.0,0.5678791]
[1739133282333,0.01083975,96568.0,96567.0,0.8678791]
[1739133282634,0.33947414,96588.0,96578.0,0.2070546]
[1739133282836,0.33947414,96588.0,96579.0,0.3608]
[1739133283648,0.30593761,96580.0,96579.0,0.3608]
[1739133283861,0.002,96580.0,96579.0,0.3608]
[1739133288259,0.002,96580.0,96579.0,0.5678533]
[1739133291861,0.00015539,96589.0,96579.0,0.3608]
[1739133292061,0.00015539,96589.0,96588.0,0.567834]
[1739133294969,0.00015539,96589.0,96588.0,0.57836347]
[1739133298267,0.1,96600.0,96588.0,0.37132947]
[1739133298458,0.1,96600.0,96599.0,0.5678105]
[1739133299261,0.2069704,96618.0,96617.0,0.2069719]
[1739133299465,0.2069704,96618.0,96617.0,0.9285719]
[1739133300775,0.2069704,96618.0,96617.0,0.7216]
[1739133301567,0.2069704,96618.0,96617.0,0.7226]
[1739133310376,0.1228,96622.0,96621.0,0.2069634]
[1739133310678,0.00015531,96627.0,96626.0,0.2069527]
[1739133310874,0.00015531,96627.0,96626.0,0.5677527]
[1739133312670,0.00015531,96627.0,96626.0,0.6387527]
[1739133313679,1.03065531,96627.0,96626.0,0.6387527]
[1739133314374,1.03038363,96627.0,96626.0,1.09956249]
[1739133315576,0.5589,96627.0,96626.0,1.09956249]
[1739133315780,0.00015531,96636.0,96635.0,0.36073599]
[1739133316081,0.00015531,96636.0,96635.0,0.56766939]
[1739133317977,0.0582,96654.0,96635.0,0.36073599]
[1739133318278,0.76688001,96674.0,96653.0,0.7216]
[1739133318486,0.1245,96673.0,96671.0,0.7216]
[1739133318879,0.2068542,96672.0,96671.0,0.7216]
[1739133320286,0.1245,96673.0,96671.0,0.7216]
[1739133320583,0.00010266,96681.0,96671.0,0.7216]
[1739133320787,0.24634959,96722.0,96680.0,0.3608]
[1739133321081,0.24576176,96722.0,96699.0,0.7732986]
[1739133321281,0.24520175,96722.0,96721.0,0.7216]
[1739133322475,0.24520175,96722.0,96721.0,0.7226]
[1739133323881,0.10589353,96722.0,96721.0,0.9293494]
[1739133325487,0.27680159,96729.0,96727.0,0.2067347]
[1739133325679,0.40058976,96767.0,96728.0,0.13286]
[1739133325880,0.00056001,96767.0,96765.0,0.5674554]
[1739133326083,0.2066024,96790.0,96770.0,0.2066433]
[1739133326290,0.1,96800.0,96789.0,0.3608]
[1739133326479,0.44407,96800.0,96799.0,0.3608]
[1739133326681,0.1,96800.0,96799.0,0.3608]
[1739133327289,0.06281,96800.0,96799.0,0.5673829]
[1739133327500,0.00380472,96800.0,96799.0,0.3608]
[1739133327986,0.33885117,96843.0,96799.0,0.6608]
[1739133328292,0.33885117,96843.0,96821.0,0.7216]
[1739133328293,0.2065311,96824.0,96821.0,0.7216]
[1739133328881,0.2065311,96824.0,96821.0,0.3608]
[1739133330188,0.07688,96823.0,96813.0,0.3608]
[1739133330378,0.51451853,96822.0,96812.0,0.00015497]
[1739133330781,0.2065508,96814.0,96812.0,0.00015497]
[1739133331884,0.2065508,96814.0,96812.0,7e-08]
[1739133332085,0.2066018,96791.0,96788.0,0.3608]
[1739133333988,0.00015412,96799.0,96788.0,0.3628]
[1739133334184,0.00015412,96799.0,96798.0,0.3608]
[1739133334781,0.06763695,96806.0,96798.0,0.3608]
[1739133335096,0.3608,96816.0,96798.0,0.3608]
[1739133335283,0.07844,96812.0,96808.0,0.3608]
[1739133335480,0.2065572,96811.0,96808.0,0.3608]
[1739133335788,0.07844,96812.0,96800.0,0.3608]
[1739133335989,0.2065786,96801.0,96800.0,0.36095497]
[1739133336795,0.15371853,96810.0,96800.0,0.36095497]
[1739133337092,0.2065786,96801.0,96800.0,0.00015497]
[1739133337489,0.2065957,96793.0,96792.0,0.3608]
[1739133337692,0.2850357,96793.0,96792.0,0.3608]
[1739133339095,0.2066149,96784.0,96783.0,0.00015497]
[1739133339295,0.23215853,96793.0,96770.0,0.36234994]
[1739133339593,0.2066427,96771.0,96770.0,0.36234994]
[1739133340895,0.2066427,96771.0,96770.0,0.36834994]
[1739133341304,0.2066427,96771.0,96770.0,0.36534994]
[1739133341801,0.3608,96775.0,96761.0,0.00015497]
[1739133342001,0.2066619,96762.0,96761.0,0.00015497]
[1739133343293,0.15371853,96771.0,96748.0,0.3608]
[1739133343489,0.3608,96775.0,96743.0,0.3608]
[1739133343490,0.15371853,96758.0,96743.0,0.3608]
[1739133343692,0.07812,96757.0,96743.0,0.3608]
[1739133344602,0.2067003,96744.0,96743.0,0.3608]
[1739133346806,0.2067003,96744.0,96743.0,0.3648]
[1739133349505,0.02052871,96744.0,96743.0,0.3648]
[1739133349810,0.0597,96754.0,96743.0,0.3648]
[1739133350202,0.2067003,96744.0,96743.0,0.3648]
[1739133351207,0.2067003,96744.0,96743.0,0.004]
[1739133353811,0.2067067,96741.0,96740.0,0.00015497]
[1739133354010,0.2842267,96741.0,96740.0,0.00015497]
[1739133357610,0.3608,96754.0,96740.0,0.00015497]
[1739133357911,0.2066896,96749.0,96747.0,0.3608]
[1739133358112,0.2066896,96749.0,96748.0,0.3608]
[1739133360018,0.0778,96755.0,96740.0,0.17962642]
[1739133360209,0.2067067,96741.0,96740.0,0.17962642]
[1739133361910,0.2067067,96741.0,96740.0,0.18062642]
[1739133363812,0.2067067,96741.0,96740.0,0.17962642]
[1739133364215,0.2067067,96741.0,96740.0,0.00015497]
[1739133364410,0.51474993,96750.0,96740.0,0.00015497]
[1739133364716,0.2067059,96742.0,96740.0,0.00015497]
[1739133365315,0.07776,96749.0,96740.0,0.00015497]
[1739133365515,0.2844496,96749.0,96748.0,0.3608]
[1739133366416,0.2066896,96749.0,96748.0,0.3608]
[1739133366616,0.2842496,96749.0,96748.0,0.3608]
[1739133369318,0.2066896,96749.0,96748.0,0.3608]
[1739133369519,0.07736,96757.0,96748.0,0.3608]
[1739133369721,0.2840325,96757.0,96756.0,0.3608]
[1739133369915,0.2066725,96757.0,96756.0,0.3608]
[1739133370117,0.2066725,96757.0,96756.0,0.36070265]
[1739133372118,0.2066611,96763.0,96757.0,0.2066723]
[1739133372321,0.2066374,96774.0,96758.0,0.2066693]
[1739133372526,0.0595,96786.0,96758.0,0.2066693]
[1739133372820,0.07708,96782.0,96756.0,0.36070265]
[1739133373022,0.2836992,96782.0,96781.0,0.3608]
[1739133373619,0.07708,96782.0,96759.0,0.3608]
[1739133373923,0.2066601,96763.0,96759.0,0.3608]
[1739133374124,0.077,96762.0,96761.0,0.00015505]
[1739133375718,0.1391,96762.0,96761.0,0.00015505]
[1739133377536,0.2066601,96763.0,96761.0,0.00015505]
[1739133379525,0.2066918,96748.0,96747.0,0.18286697]
[1739133379727,0.2831318,96748.0,96747.0,0.18286697]
[1739133380627,0.2831318,96748.0,96747.0,0.17286697]
[1739133381834,0.2831318,96748.0,96738.0,0.00015505]
[1739133381835,0.206711,96739.0,96738.0,0.00015505]
[1739133382929,0.206711,96739.0,96738.0,0.00215505]
[1739133383433,0.2067409,96725.0,96719.0,0.23929527]
[1739133383619,0.2829409,96725.0,96719.0,0.23929527]
[1739133384422,0.2829409,96725.0,96713.0,0.0614]
[1739133384635,0.2829409,96725.0,96715.0,0.00015505]
[1739133385429,0.2829409,96725.0,96724.0,0.3618]
[1739133385922,0.2067602,96716.0,96715.0,0.00015505]
[1739133387834,0.001,96716.0,96712.0,0.00155062]
[1739133388025,0.2067666,96713.0,96712.0,0.00155062]
[1739133389335,0.2077666,96713.0,96712.0,0.00155062]
[1739133390531,0.001,96713.0,96712.0,0.00155062]
[1739133392235,0.2077666,96713.0,96712.0,0.00155062]
[1739133397944,0.2077666,96713.0,96703.0,0.00015505]
[1739133397945,0.001,96713.0,96703.0,0.00015505]
[1739133398145,0.2067858,96704.0,96703.0,0.00015505]
[1739133398845,0.2067922,96701.0,96700.0,0.1]
[1739133399146,0.2818322,96701.0,96700.0,0.1]
[1739133399642,0.2817522,96701.0,96700.0,0.4608]
[1739133400246,0.2827522,96701.0,96700.0,0.4608]
[1739133402131,0.2827522,96701.0,96700.0,0.1]
[1739133405249,0.2817522,96701.0,96700.0,0.1]
[1739133405446,0.2837522,96701.0,96700.0,0.1]
[1739133409451,0.2068115,96692.0,96691.0,0.36090325]
[1739133410051,0.3608,96692.0,96679.0,0.0603]
[1739133410355,0.2068371,96680.0,96679.0,0.0603]
[1739133410552,0.2809571,96680.0,96679.0,0.0603]
[1739133412552,0.2809571,96680.0,96679.0,0.0643]
[1739133413152,0.2809571,96680.0,96679.0,0.004]
[1739133413547,0.2809571,96680.0,96666.0,0.0575]
[1739133413548,0.07412,96680.0,96666.0,0.0575]
[1739133413853,0.2068735,96663.0,96662.0,0.13707268]
[1739133414045,0.0517131,96673.0,96659.0,0.0575]
[1739133414254,0.2068799,96660.0,96659.0,0.0575]
[1739133415555,0.2068799,96660.0,96659.0,0.0635]
[1739133416057,0.2068799,96660.0,96659.0,0.0575]
[1739133416253,0.2068799,96660.0,96659.0,0.0615]
[1739133417753,0.2068799,96660.0,96659.0,1e-07]
[1739133417754,0.5676799,96660.0,96659.0,1e-07]
[1739133418261,0.2069013,96650.0,96649.0,0.23929527]
[1739133418455,0.6413813,96650.0,96649.0,0.23929527]
[1739133419751,0.6433813,96650.0,96649.0,0.23929527]
[1739133420151,0.2069163,96643.0,96642.0,0.0604]
[1739133420555,0.2069335,96635.0,96634.0,0.01045341]
[1739133420765,0.2069335,96635.0,96633.0,0.0596]
[1739133421062,0.2069086,96647.0,96639.0,0.2069234]
[1739133421254,0.00015513,96652.0,96643.0,0.5677148]
[1739133421560,0.206908,96647.0,96643.0,0.3608]
[1739133422162,0.2069102,96646.0,96643.0,0.3608]
[1739133422468,0.2069123,96645.0,96643.0,0.3608]
[1739133423365,0.2069256,96639.0,96637.0,0.3608]
[1739133423963,0.004,96646.0,96637.0,0.3608]
[1739133424158,0.206927,96638.0,96637.0,0.3608]
[1739133425162,0.2069356,96634.0,96633.0,0.07003751]
[1739133425952,0.07328,96644.0,96633.0,0.07003751]
[1739133426151,0.004,96645.0,96637.0,0.3608]
[1739133426765,0.2069082,96647.0,96642.0,0.2069173]
[1739133426952,0.2069082,96647.0,96646.0,0.3608]
[1739133428660,0.19987753,96647.0,96646.0,0.3608]
[1739133429359,0.20387753,96647.0,96646.0,0.3608]
[1739133429558,0.20487753,96647.0,96646.0,0.3608]
[1739133433562,0.005,96647.0,96646.0,0.3608]
[1739133435163,0.005,96647.0,96646.0,0.5677099]
[1739133435854,0.005,96647.0,96646.0,0.3608]
[1739133436665,0.003,96647.0,96646.0,0.3618]
[1739133437266,0.206906,96648.0,96646.0,0.3618]
[1739133437467,0.004,96647.0,96646.0,0.3618]
[1739133437665,0.2109077,96647.0,96646.0,0.3618]
[1739133438168,0.2109077,96647.0,96646.0,0.3608]
[1739133438362,0.2119077,96647.0,96646.0,0.3608]
[1739133438958,0.2119077,96647.0,96646.0,0.5677099]
[1739133439471,0.2079077,96647.0,96646.0,0.5677099]
[1739133439857,0.2079077,96647.0,96646.0,0.3608]
[1739133440372,0.2119077,96647.0,96646.0,0.3608]
[1739133443581,0.2119077,96647.0,96646.0,0.5677099]
[1739133454591,0.2119077,96647.0,96646.0,0.3608]
[1739133455292,0.2069184,96642.0,96641.0,0.30551078]
[1739133456889,0.2089184,96642.0,96641.0,0.30551078]
[1739133457095,0.2089184,96642.0,96640.0,0.2454239]
[1739133457096,0.002,96642.0,96640.0,0.2454239]
[1739133457295,0.2719206,96641.0,96640.0,0.2454239]
[1739133457687,0.3442806,96641.0,96640.0,0.2454239]
[1739133458487,0.3442806,96641.0,96640.0,0.2474239]
[1739133459394,0.13736,96641.0,96633.0,0.30551078]
[1739133459587,0.5677355,96634.0,96633.0,0.30551078]
[1739133459988,0.2069527,96626.0,96611.0,0.43532077]
[1739133460194,0.2069827,96612.0,96611.0,0.43532077]
[1739133460399,0.2069827,96612.0,96611.0,0.43392077]
[1739133460595,0.2069827,96612.0,96604.0,0.70568496]
[1739133460596,0.2069848,96611.0,96610.0,0.36814249]
[1739133460796,0.2750848,96611.0,96610.0,0.36814249]
[1739133462202,0.2750848,96611.0,96610.0,0.37414249]
[1739133462504,0.6358848,96611.0,96610.0,0.37414249]
[1739133462694,0.6388848,96611.0,96610.0,0.36814249]
[1739133462996,0.7112048,96611.0,96610.0,0.36814249]
[1739133463208,0.7823048,96611.0,96610.0,0.36814249]
[1739133463994,0.2070062,96601.0,96600.0,0.1]
[1739133465402,0.2070062,96601.0,96600.0,0.106]
[1739133466093,0.2090062,96601.0,96600.0,0.104]
[1739133466798,0.2070062,96601.0,96600.0,0.104]
[1739133466995,0.2090062,96601.0,96600.0,0.104]
[1739133467498,0.2090062,96601.0,96600.0,0.101]
[1739133468498,0.2812062,96601.0,96600.0,0.101]
[1739133473799,0.2070341,96588.0,96587.0,0.3608]
[1739133475202,0.2070341,96588.0,96587.0,0.3618]
[1739133475400,0.2090341,96588.0,96587.0,0.3618]
[1739133480208,0.002,96588.0,96587.0,0.3618]
[1739133480511,0.002,96588.0,96587.0,0.5688362]
[1739133485014,0.0001553,96597.0,96587.0,0.5688362]
[1739133485015,0.0001553,96597.0,96587.0,0.6618]
[1739133485214,0.0714,96610.0,96596.0,0.3608]
[1739133485414,0.0517474,96609.0,96597.0,0.0794]
[1739133485811,0.20827851,96610.0,96597.0,0.0794]
[1739133486322,0.2070108,96599.0,96597.0,0.0794]
[1739133486712,0.2070127,96598.0,96597.0,0.0794]
[1739133487808,0.2100127,96598.0,96597.0,0.0794]
[1739133488111,0.2160127,96598.0,96597.0,0.0804]
[1739133488824,0.2160127,96598.0,96597.0,0.001]
[1739133499815,0.2070555,96578.0,96577.0,0.3608]
[1739133500014,0.0517598,96586.0,96567.0,0.3608]
[1739133500218,0.2070669,96573.0,96567.0,0.3608]
[1739133500723,0.1332598,96586.0,96567.0,0.3608]
[1739133500925,0.0815,96586.0,96577.0,0.005]
[1739133501223,0.2070555,96578.0,96577.0,0.005]
[1739133501520,0.2070598,96576.0,96575.0,0.3608]
[1739133503014,0.2070598,96576.0,96575.0,0.3648]
[1739133506523,0.2070598,96576.0,96575.0,0.3698]
[1739133514421,0.2070598,96576.0,96575.0,0.5768619]
[1739133516336,0.0001553,96586.0,96579.0,0.207047]
[1739133516337,0.2070598,96580.0,96579.0,0.207047]
[1739133517641,0.0001553,96586.0,96575.0,0.3698]
[1739133517926,0.2070405,96585.0,96584.0,0.3608]
[1739133518431,0.2588009,96585.0,96584.0,0.3608]
[1739133519632,0.2588009,96585.0,96584.0,0.3628]
[1739133520129,0.2070405,96585.0,96584.0,0.3628]
[1739133527940,0.20698321,96585.0,96584.0,0.002]
[1739133528236,0.28858321,96585.0,96584.0,0.002]
[1739133530334,0.2070684,96572.0,96571.0,0.1843262]
[1739133530535,0.2768684,96572.0,96571.0,0.1843262]
[1739133531830,0.2768684,96572.0,96571.0,0.1873262]
[1739133533136,0.2768684,96572.0,96571.0,0.1923262]
[1739133533329,0.2768684,96572.0,96571.0,0.1913262]
[1739133533738,0.2768684,96572.0,96571.0,0.1893262]
[1739133534043,0.2768684,96572.0,96557.0,0.1843262]
[1739133534044,0.2070834,96565.0,96557.0,0.1843262]
[1739133534543,0.2070984,96558.0,96557.0,0.1843262]
[1739133534943,0.2768584,96558.0,96557.0,0.1843262]
[1739133535637,0.2768584,96558.0,96557.0,0.1873262]
[1739133536633,0.2778584,96558.0,96557.0,0.1933262]
[1739133537036,0.2778584,96558.0,96557.0,0.009]
[1739133538448,0.001,96558.0,96557.0,0.009]
[1739133538639,0.06968,96583.0,96557.0,0.009]
[1739133538945,0.13687851,96590.0,96572.0,0.3608]
[1739133539246,0.13687851,96590.0,96573.0,0.1601]
[1739133539247,0.06968,96583.0,96573.0,0.1601]
[1739133539435,0.39288184,96578.0,96573.0,0.1601]
[1739133539639,0.2070608,96576.0,96573.0,0.1601]
[1739133540342,0.12845014,97091.0,96573.0,0.4601]
[1739133540343,0.18582624,96600.0,96573.0,0.4601]
[1739133540538,0.18582624,96600.0,96589.0,0.0517574]
[1739133540745,0.18092979,96600.0,96599.0,0.3608]
[1739133541240,0.18092979,96600.0,96599.0,0.5678105]
[1739133542443,0.011,96600.0,96599.0,0.3618]
[1739133542648,0.0001553,96609.0,96608.0,0.2069912]
[1739133542849,0.0001553,96609.0,96608.0,0.5677912]
[1739133544143,0.0091553,96609.0,96608.0,0.5687912]
[1739133544945,0.0161553,96609.0,96608.0,0.5697912]
[1739133546947,0.0161553,96609.0,96608.0,0.58038987]
[1739133549945,0.0517198,96661.0,96608.0,0.67339867]
[1739133550252,0.206943,96631.0,96629.0,0.3608]
[1739133550450,0.08,96630.0,96629.0,0.3608]
[1739133552545,0.098,96630.0,96629.0,0.3628]
[1739133554950,0.018,96630.0,96629.0,0.5697462]
[1739133555161,0.018,96630.0,96629.0,0.3628]
[1739133555457,0.2249441,96630.0,96629.0,0.3628]
[1739133556061,0.018,96630.0,96629.0,0.3628]
[1739133556252,0.018,96630.0,96629.0,0.5697462]
[1739133556857,0.1642,96665.0,96629.0,0.3628]
[1739133557159,0.206897,96652.0,96651.0,0.3608]
[1739133558860,0.218897,96652.0,96651.0,0.3628]
[1739133562553,0.218897,96652.0,96651.0,0.002]
[1739133578264,0.218897,96652.0,96642.0,0.00015522]
[1739133578265,0.2069162,96643.0,96642.0,0.00015522]
[1739133578471,0.2765962,96643.0,96642.0,0.00015522]
[1739133580264,0.2765962,96643.0,96642.0,0.00115522]
[1739133580461,0.2765962,96643.0,96642.0,0.00215522]
[1739133581974,0.33798753,96643.0,96642.0,0.00215522]
[1739133584979,0.34845468,96643.0,96642.0,0.00215522]
[1739133585278,0.33798753,96643.0,96642.0,0.00215522]
[1739133587878,0.28690585,96643.0,96642.0,0.00215522]
[1739133591985,0.0517363,96630.0,96618.0,0.1843262]
[1739133592282,0.2069655,96620.0,96618.0,0.1843262]
[1739133593279,0.2069655,96620.0,96619.0,0.3618]
[1739133595183,0.2069655,96620.0,96619.0,0.3608]
[1739133600184,0.2069655,96620.0,96615.0,0.01050036]
[1739133600185,0.206974,96616.0,96615.0,0.01050036]
[1739133600382,0.2069783,96614.0,96613.0,0.1621]
[1739133600685,0.2069783,96614.0,96613.0,0.0789]
[1739133601985,0.2766183,96614.0,96613.0,0.0789]
[1739133608190,0.2069848,96611.0,96610.0,0.00015522]
[1739133617495,0.2069848,96611.0,96610.0,0.36095522]
[1739133636114,0.23773678,96622.0,96610.0,0.66095522]
[1739133636115,0.18599648,96622.0,96610.0,0.66095522]
[1739133636309,0.18599648,96622.0,96621.0,0.3608]
[1739133638618,0.2069784,96614.0,96613.0,0.06964]
[1739133638911,0.2069848,96611.0,96610.0,0.36195522]
[1739133639615,0.2069848,96611.0,96610.0,0.00115522]
[1739133640002,0.2069848,96611.0,96610.0,2e-08]
[1739133640206,0.2069912,96608.0,96607.0,0.30702791]
[1739133643617,0.2070041,96602.0,96601.0,0.3608]
[1739133644210,0.2070041,96602.0,96600.0,0.0015525]
[1739133644811,0.2080041,96602.0,96601.0,0.002]
[1739133645921,0.2080041,96602.0,96600.0,0.0035525]
[1739133647222,0.2070041,96602.0,96601.0,0.002]
[1739133649119,0.2070041,96602.0,96600.0,0.0015525]
[1739133649425,0.2070041,96602.0,96600.0,0.0035525]
[1739133649814,0.2070041,96602.0,96601.0,0.002]
[1739133650325,0.2070041,96602.0,96600.0,0.0035525]
[1739133651426,0.0852,96612.0,96600.0,0.0035525]
[1739133651620,0.2070062,96601.0,96600.0,0.0035525]
[1739133651819,0.2070062,96601.0,96600.0,0.0015525]
[1739133652523,0.2070062,96601.0,96600.0,0.0035525]
[1739133652919,0.2070062,96601.0,96600.0,0.0015525]
[1739133653126,0.2070062,96601.0,96600.0,0.0035525]
[1739133655223,0.2070062,96601.0,96600.0,0.3643525]
[1739133657326,0.2070062,96601.0,96600.0,0.0035525]
[1739133657722,0.2070105,96599.0,96598.0,0.00015522]
[1739133657929,0.2766505,96599.0,96598.0,0.00015522]
[1739133658134,0.2070212,96594.0,96593.0,0.18426095]
[1739133659733,0.2070212,96594.0,96593.0,0.18926095]
[1739133660432,0.2070212,96594.0,96593.0,0.19026095]
[1739133661333,0.2920212,96594.0,96593.0,0.19026095]
[1739133663134,0.2920212,96594.0,96593.0,0.006]
[1739133664124,0.0842,96595.0,96593.0,0.2130234]
[1739133664327,0.0842,96595.0,96594.0,0.2070212]
[1739133665031,0.0842,96595.0,96593.0,0.006]
[1739133665032,0.0853,96600.0,96593.0,0.006]
[1739133665229,0.2906955,96607.0,96601.0,0.2070042]
[1739133665724,0.0891,96614.0,96606.0,0.2069944]
[1739133665929,0.166,96620.0,96607.0,0.3608]
[1739133666133,0.2069561,96625.0,96607.0,0.3608]
[1739133666443,0.0823,96628.0,96607.0,0.4452]
[1739133666640,0.0823,96628.0,96607.0,0.51496]
[1739133666929,0.2892492,96628.0,96607.0,0.51496]
[1739133667325,0.2069513,96627.0,96607.0,0.51496]
[1739133667733,0.2069535,96626.0,96607.0,0.51496]
[1739133667929,0.13717309,96620.0,96607.0,0.54506095]
[1739133668336,0.0823,96628.0,96607.0,0.54506095]
[1739133668538,0.2069802,96614.0,96607.0,0.54506095]
[1739133668737,0.2069813,96613.0,96607.0,0.54506095]
[1739133668937,0.2069813,96613.0,96607.0,0.55552546]
[1739133670334,0.0823,96628.0,96607.0,0.55552546]
[1739133670526,0.2069706,96618.0,96607.0,0.55552546]
[1739133671041,0.2069726,96617.0,96607.0,0.55552546]
[1739133672932,0.2069726,96617.0,96607.0,0.37126451]
[1739133673334,0.2069726,96617.0,96607.0,0.57825791]
[1739133674329,0.2069763,96615.0,96607.0,0.57825791]
[1739133680247,0.2069763,96615.0,96607.0,0.21745791]
[1739133680444,0.2069763,96615.0,96607.0,0.93905791]
[1739133681245,0.2069851,96611.0,96607.0,0.93905791]
[1739133683456,0.0827,96610.0,96607.0,0.93905791]
[1739133683843,0.20714642,96608.0,96607.0,0.93905791]
[1739133685446,0.20688572,96608.0,96607.0,0.93905791]
[1739133685647,0.20688572,96608.0,96607.0,0.9285934]
[1739133687946,0.0917,96609.0,96608.0,0.2069913]
[1739133689356,0.2986891,96609.0,96608.0,0.2069913]
[1739133690546,0.2069913,96608.0,96607.0,0.72308]
[1739133690752,0.2070105,96599.0,96598.0,0.18441617]
[1739133692053,0.2070105,96599.0,96598.0,0.18641617]
[1739133693361,0.2070105,96599.0,96598.0,0.00215522]
[1739133695757,0.5678105,96599.0,96598.0,0.00215522]
[1739133695957,0.5678105,96599.0,96572.0,0.5678672]
[1739133695958,0.207047,96582.0,96572.0,0.5678672]
[1739133696256,0.207047,96582.0,96578.0,0.01027479]
[1739133696861,0.1708,96590.0,96578.0,0.25595606]
[1739133697055,0.2070534,96579.0,96578.0,0.24568127]
[1739133698158,0.2070534,96579.0,96578.0,0.25468127]
[1739133698957,0.2070534,96579.0,96578.0,0.26068127]
[1739133699353,0.2070534,96579.0,96578.0,0.25168127]
[1739133699559,0.2070534,96579.0,96578.0,0.25468127]
[1739133700663,0.2070534,96579.0,96578.0,0.009]
[1739133700857,0.2070534,96579.0,96578.0,0.005]
[1739133701056,0.2080534,96579.0,96578.0,0.002]
[1739133701661,0.2070641,96574.0,96573.0,0.3608]
[1739133704561,0.2070641,96574.0,96573.0,0.3628]
[1739133704868,0.2080641,96574.0,96573.0,0.3628]
[1739133708062,0.2080641,96574.0,96573.0,0.002]
[1739133710261,0.2080641,96574.0,96573.0,0.2090662]
[1739133712871,0.2080641,96574.0,96573.0,0.002]
[1739133723281,0.001,96574.0,96573.0,0.002]
[1739133723474,0.001,96574.0,96573.0,0.2090662]
[1739133723778,0.001,96574.0,96573.0,0.3748662]
[1739133724275,0.2070251,96593.0,96579.0,0.2070513]
[1739133724472,0.2070251,96593.0,96590.0,0.3608]
[1739133725176,0.18599648,96600.0,96590.0,0.3608]
[1739133725573,0.18599648,96600.0,96590.0,0.37619175]
[1739133725967,0.00215531,96591.0,96590.0,0.37619175]
[1739133727273,0.00215531,96591.0,96590.0,0.3608]
[1739133727882,0.00215531,96591.0,96590.0,0.37633607]
[1739133728280,0.00215531,96591.0,96590.0,0.3608]
[1739133728782,0.00015531,96591.0,96590.0,0.3608]
[1739133728983,0.00215531,96591.0,96590.0,0.3608]
[1739133729377,0.00015531,96591.0,96590.0,0.3618]
[1739133730170,0.00015531,96591.0,96590.0,0.5688298]
[1739133744893,0.20718301,96591.0,96590.0,0.5688298]
[1739133747600,0.20718301,96591.0,96590.0,0.001]
[1739133755402,0.27758301,96591.0,96590.0,0.001]
[1739133782307,0.20718301,96591.0,96590.0,0.001]
[1739133782515,0.27698301,96591.0,96590.0,0.001]
[1739133782710,0.00015531,96591.0,96590.0,0.2080298]
[1739133784819,0.20718301,96591.0,96590.0,0.001]
[1739133789028,0.20718301,96591.0,96590.0,0.2080298]
[1739133790122,0.20718301,96591.0,96590.0,0.001]
[1739133796933,0.20718301,96591.0,96590.0,0.2080298]
[1739133797234,0.00015531,96591.0,96590.0,0.2080298]
[1739133803934,0.06968,96608.0,96590.0,0.2080298]
[1739133803935,0.2069821,96613.0,96612.0,0.2069784]
[1739133805026,0.2089821,96613.0,96612.0,0.2089784]
[1739133807240,0.002,96613.0,96612.0,0.2089784]
[1739133810239,0.2089806,96613.0,96612.0,0.2089784]
[1739133811245,0.2089806,96613.0,96612.0,0.002]